[Event "2021 m. Jauniu lyga. III etapas. A"]
[Site "Siauliai"]
[Date "2021.07.04"]
[Round "1.1"]
[White "Morkunas, Gustas"]
[Black "Vardanyan, Aras"]
[Result "0-1"]
[WhiteElo "1940"]
[BlackElo "2216"]
[PlyCount "70"]
[EventDate "2021.??.??"]
[TimeControl "8+4"]
[WhiteClock "0:00:09"]
[BlackClock "0:02:19"]

1. e4 {[%emt 0:00:01]} c5 {[%emt 0:00:06]} 2. Nf3 {[%emt 0:00:02]} e6 {[%emt 0:
00:02]} 3. d4 {[%emt 0:00:02]} cxd4 {[%emt 0:00:02]} 4. Nxd4 {[%emt 0:00:02]}
a6 {[%emt 0:00:00]} 5. Nc3 {[%emt 0:00:08]} b5 {[%emt 0:00:01]} 6. Bd3 {[%emt
0:00:31]} Bb7 {[%emt 0:00:02]} 7. O-O {[%emt 0:00:11]} Nc6 {[%emt 0:00:09]} 8.
Be3 {[%emt 0:00:11]} Nge7 {[%emt 0:00:02]} 9. f4 {[%emt 0:00:58]} Nxd4 {[%emt
0:01:25]} 10. Bxd4 {[%emt 0:00:05]} Nc6 {[%emt 0:00:05]} 11. Bf2 {[%emt 0:00:
30]} Be7 {[%emt 0:00:39]} 12. Qg4 {[%emt 0:01:12]} O-O {[%emt 0:00:06]} 13.
Rad1 {[%emt 0:00:18]} Qc7 {[%emt 0:01:03]} 14. h4 {[%emt 0:01:39]} Nb4 {[%emt
0:00:06]} 15. f5 {[%emt 0:01:12]} Nxd3 {[%emt 0:00:37]} 16. cxd3 {[%emt 0:00:
18]} b4 {[%emt 0:00:09]} 17. Ne2 {[%emt 0:00:21]} exf5 {[%emt 0:00:25]} 18.
Qxf5 {[%emt 0:00:12]} g6 {[%emt 0:00:24]} 19. Qg4 {[%emt 0:00:23]} d5 {[%emt 0:
00:03]} 20. Rc1 {[%emt 0:00:33]} Qb8 {[%emt 0:00:32]} 21. Bg3 {[%emt 0:00:18]}
Bd6 {[%emt 0:00:01]} 22. Bf2 {[%emt 0:00:08]} dxe4 {[%emt 0:00:06]} 23. dxe4 {
[%emt 0:00:01]} Be5 {[%emt 0:00:08]} 24. b3 {[%emt 0:00:09]} Qd8 {[%emt 0:00:
50]} 25. Rfd1 {[%emt 0:00:05]} Qf6 {[%emt 0:00:06]} 26. Nd4 {[%emt 0:00:12]}
Rad8 {[%emt 0:00:10]} 27. Nf3 {[%emt 0:00:01]} Bf4 {[%emt 0:00:11]} 28. Rxd8 {
[%emt 0:00:03]} Rxd8 {[%emt 0:00:00]} 29. Re1 {[%emt 0:00:03]} h5 {[%emt 0:00:
04]} 30. Qh3 {[%emt 0:00:04]} Bc8 {[%emt 0:00:01]} 31. Qh1 {[%emt 0:00:02]} Bg4
{[%emt 0:00:02]} 32. e5 {[%emt 0:00:05]} Qc6 {[%emt 0:00:06]} 33. Nd4 {[%emt 0:
00:03]} Qc3 {[%emt 0:00:03]} 34. Ne2 {[%emt 0:00:15]} Bxe2 {[%emt 0:00:12]} 35.
Rxe2 {[%emt 0:00:02]} Rd1+ {[%emt 0:00:02]} 0-1

[Event "2021 m. Jauniu lyga. III etapas. A"]
[Site "Siauliai"]
[Date "2021.07.04"]
[Round "1.2"]
[White "Bagvilas, Lukas"]
[Black "Posaskov, Nikita"]
[Result "1-0"]
[WhiteElo "1973"]
[BlackElo "1862"]
[PlyCount "37"]
[EventDate "2021.??.??"]
[TimeControl "8+4"]
[WhiteClock "0:04:52"]
[BlackClock "0:00:26"]

1. e4 {[%emt 0:00:00]} c6 {[%emt 0:00:02]} 2. d4 {[%emt 0:00:02]} d5 {[%emt 0:
00:01]} 3. exd5 {[%emt 0:00:04]} cxd5 {[%emt 0:00:01]} 4. Bd3 {[%emt 0:00:01]}
Nc6 {[%emt 0:00:02]} 5. c3 {[%emt 0:00:02]} Qc7 {[%emt 0:00:01]} 6. Ne2 {[%emt
0:00:14]} Bg4 {[%emt 0:00:52]} 7. f3 {[%emt 0:00:18]} Bh5 {[%emt 0:00:01]} 8.
Nf4 {[%emt 0:00:04]} Nf6 {[%emt 0:00:52]} 9. g4 {[%emt 0:00:52]} Bg6 {[%emt 0:
00:02]} 10. g5 {[%emt 0:00:08]} e5 {[%emt 0:01:43]} 11. Nxg6 {[%emt 0:00:17]}
hxg6 {[%emt 0:00:12]} 12. gxf6 {[%emt 0:00:04]} e4 {[%emt 0:00:14]} 13. Qe2 {
[%emt 0:00:02]} Nxd4 {[%emt 0:00:09]} 14. Bb5+ {[%emt 0:00:46]} Kd8 {[%emt 0:
00:01]} 15. Bg5 {[%emt 0:00:44]} Kc8 {[%emt 0:03:47]} 16. cxd4 {[%emt 0:00:21]}
Bb4+ {[%emt 0:00:01]} 17. Nd2 {[%emt 0:00:08]} gxf6 {[%emt 0:00:41]} 18. Bxf6 {
[%emt 0:00:04]} Rh3 {[%emt 0:00:06]} 19. O-O {[%emt 0:00:16]} 1-0

[Event "2021 m. Jauniu lyga. III etapas. A"]
[Site "Siauliai"]
[Date "2021.07.04"]
[Round "1.3"]
[White "Salna, Aleksandras"]
[Black "Bagdanskis, Dangis"]
[Result "1-0"]
[WhiteElo "2134"]
[BlackElo "1897"]
[PlyCount "49"]
[EventDate "2021.??.??"]
[TimeControl "8+4"]
[WhiteClock "0:05:33"]
[BlackClock "0:00:19"]

1. d4 {[%emt 0:00:01]} d5 {[%emt 0:00:02]} 2. c4 {[%emt 0:00:01]} e6 {[%emt 0:
00:02]} 3. Nc3 {[%emt 0:00:02]} Nf6 {[%emt 0:00:02]} 4. Nf3 {[%emt 0:00:02]}
Nbd7 {[%emt 0:00:04]} 5. Bg5 {[%emt 0:00:03]} h6 {[%emt 0:00:07]} 6. Bh4 {
[%emt 0:00:02]} Bb4 {[%emt 0:00:10]} 7. e3 {[%emt 0:00:04]} g5 {[%emt 0:00:02]}
8. Bg3 {[%emt 0:00:03]} Ne4 {[%emt 0:00:00]} 9. Nd2 {[%emt 0:00:04]} Nxc3 {
[%emt 0:03:01]} 10. bxc3 {[%emt 0:00:02]} Bxc3 {[%emt 0:00:01]} 11. Rc1 {[%emt
0:00:01]} Ba5 {[%emt 0:00:50]} 12. h4 {[%emt 0:00:03]} c6 {[%emt 0:00:21]} 13.
hxg5 {[%emt 0:00:14]} Qxg5 {[%emt 0:00:03]} 14. Bd3 {[%emt 0:01:26]} h5 {[%emt
0:00:51]} 15. Kf1 {[%emt 0:00:05]} h4 {[%emt 0:00:09]} 16. Nf3 {[%emt 0:00:12]}
Qg4 {[%emt 0:00:19]} 17. Rxh4 {[%emt 0:00:16]} Rxh4 {[%emt 0:00:03]} 18. Bxh4 {
[%emt 0:00:03]} Bc7 {[%emt 0:00:27]} 19. Qe1 {[%emt 0:00:24]} f5 {[%emt 0:00:
59]} 20. cxd5 {[%emt 0:00:41]} exd5 {[%emt 0:00:01]} 21. Qb4 {[%emt 0:00:01]}
Bd8 {[%emt 0:00:35]} 22. Bxd8 {[%emt 0:00:08]} Kxd8 {[%emt 0:00:01]} 23. Qd6 {
[%emt 0:00:05]} Qh5 {[%emt 0:00:41]} 24. Kg1 {[%emt 0:00:07]} Qf7 {[%emt 0:00:
24]} 25. Ng5 {[%emt 0:00:06]} 1-0

[Event "2021 m. Jauniu lyga. III etapas. A"]
[Site "Siauliai"]
[Date "2021.07.04"]
[Round "2.1"]
[White "Posaskov, Nikita"]
[Black "Salna, Aleksandras"]
[Result "1-0"]
[WhiteElo "1862"]
[BlackElo "2134"]
[PlyCount "117"]
[EventDate "2021.??.??"]
[TimeControl "8+4"]
[WhiteClock "0:00:09"]
[BlackClock "0:00:22"]

1. d4 {[%emt 0:00:00]} d5 {[%emt 0:00:03]} 2. Bf4 {[%emt 0:00:01]} Nf6 {[%emt
0:00:02]} 3. e3 {[%emt 0:00:03]} c5 {[%emt 0:00:00]} 4. c3 {[%emt 0:00:02]} Nc6
{[%emt 0:00:02]} 5. Nf3 {[%emt 0:00:02]} Qb6 {[%emt 0:00:07]} 6. Qb3 {[%emt 0:
00:00]} c4 {[%emt 0:00:02]} 7. Qc2 {[%emt 0:00:01]} Bf5 {[%emt 0:00:02]} 8. Qc1
{[%emt 0:00:00]} Nh5 {[%emt 0:00:09]} 9. Bg3 {[%emt 0:00:17]} Nxg3 {[%emt 0:00:
08]} 10. hxg3 {[%emt 0:00:01]} e6 {[%emt 0:00:14]} 11. Nh4 {[%emt 0:00:10]} Be4
{[%emt 0:00:29]} 12. Nd2 {[%emt 0:00:19]} Be7 {[%emt 0:00:19]} 13. f3 {[%emt 0:
02:21]} Bd3 {[%emt 0:00:34]} 14. Bxd3 {[%emt 0:00:05]} cxd3 {[%emt 0:00:02]}
15. f4 {[%emt 0:00:02]} Na5 {[%emt 0:00:50]} 16. Qb1 {[%emt 0:00:56]} Nc4 {
[%emt 0:00:09]} 17. b3 {[%emt 0:02:40]} Nxe3 {[%emt 0:01:58]} 18. Qxd3 {[%emt
0:00:01]} Bxh4 {[%emt 0:00:07]} 19. Qxe3 {[%emt 0:00:01]} Be7 {[%emt 0:00:08]}
20. f5 {[%emt 0:00:20]} exf5 {[%emt 0:01:04]} 21. O-O {[%emt 0:00:02]} Qe6 {
[%emt 0:00:30]} 22. Rae1 {[%emt 0:00:57]} O-O {[%emt 0:01:32]} 23. Qf4 {[%emt
0:00:46]} Bd6 {[%emt 0:00:16]} 24. Qxf5 {[%emt 0:00:10]} Qxf5 {[%emt 0:00:02]}
25. Rxf5 {[%emt 0:00:01]} Rfe8 {[%emt 0:00:23]} 26. Rxe8+ {[%emt 0:00:16]} Rxe8
{[%emt 0:00:02]} 27. Rxd5 {[%emt 0:00:03]} Bxg3 {[%emt 0:00:01]} 28. Ne4 {
[%emt 0:00:05]} Bf4 {[%emt 0:00:06]} 29. Nc5 {[%emt 0:00:05]} b6 {[%emt 0:00:
06]} 30. Nd3 {[%emt 0:00:05]} Bd2 {[%emt 0:00:11]} 31. c4 {[%emt 0:00:04]} g6 {
[%emt 0:00:09]} 32. Kf2 {[%emt 0:00:05]} Bc3 {[%emt 0:00:15]} 33. Rd7 {[%emt 0:
00:03]} Re4 {[%emt 0:00:04]} 34. d5 {[%emt 0:00:05]} Bd4+ {[%emt 0:00:04]} 35.
Kf1 {[%emt 0:00:05]} g5 {[%emt 0:00:05]} 36. Rd8+ {[%emt 0:00:04]} Kg7 {[%emt
0:00:01]} 37. d6 {[%emt 0:00:02]} Re3 {[%emt 0:00:02]} 38. Nb4 {[%emt 0:00:04]}
Bc5 {[%emt 0:00:03]} 39. Nd5 {[%emt 0:00:03]} Re6 {[%emt 0:00:05]} 40. d7 {
[%emt 0:00:07]} Rd6 {[%emt 0:00:01]} 41. b4 {[%emt 0:00:06]} Bd4 {[%emt 0:00:
01]} 42. Ke2 {[%emt 0:00:04]} h5 {[%emt 0:00:07]} 43. Kd3 {[%emt 0:00:04]} Bf2
{[%emt 0:00:01]} 44. Ke4 {[%emt 0:00:04]} g4 {[%emt 0:00:05]} 45. Nf4 {[%emt 0:
00:04]} Bh4 {[%emt 0:00:03]} 46. Re8 {[%emt 0:00:04]} Rxd7 {[%emt 0:00:02]} 47.
Nxh5+ {[%emt 0:00:01]} Kg6 {[%emt 0:00:02]} 48. Nf4+ {[%emt 0:00:01]} Kg7 {
[%emt 0:00:02]} 49. Nh5+ {[%emt 0:00:04]} Kh6 {[%emt 0:00:01]} 50. Rh8+ {[%emt
0:00:03]} Kg5 {[%emt 0:00:03]} 51. g3 {[%emt 0:00:10]} f5+ {[%emt 0:00:06]} 52.
Ke5 {[%emt 0:00:05]} Bxg3+ {[%emt 0:00:06]} 53. Nxg3 {[%emt 0:00:01]} Rc7 {
[%emt 0:00:03]} 54. Rg8+ {[%emt 0:00:05]} Kh4 {[%emt 0:00:10]} 55. Nxf5+ {
[%emt 0:00:01]} Kh3 {[%emt 0:00:01]} 56. Kd5 {[%emt 0:00:09]} Rf7 {[%emt 0:00:
01]} 57. Nh6 {[%emt 0:00:05]} Rd7+ {[%emt 0:00:09]} 58. Ke6 {[%emt 0:00:03]}
Rd4 {[%emt 0:00:01]} 59. Rxg4 {[%emt 0:00:03]} 1-0

[Event "2021 m. Jauniu lyga. III etapas. A"]
[Site "Siauliai"]
[Date "2021.07.04"]
[Round "2.2"]
[White "Vardanyan, Aras"]
[Black "Bagvilas, Lukas"]
[Result "1-0"]
[WhiteElo "2216"]
[BlackElo "1973"]
[PlyCount "126"]
[EventDate "2021.??.??"]
[TimeControl "8+4"]
[WhiteClock "0:01:46"]

1. Nf3 {[%emt 0:00:03]} d5 {[%emt 0:00:05]} 2. c4 {[%emt 0:00:02]} c6 {[%emt 0:
00:01]} 3. e3 {[%emt 0:00:09]} Nf6 {[%emt 0:00:02]} 4. Nc3 {[%emt 0:00:00]} e6
{[%emt 0:00:18]} 5. b3 {[%emt 0:00:02]} Nbd7 {[%emt 0:00:43]} 6. Bb2 {[%emt 0:
00:01]} e5 {[%emt 0:00:15]} 7. Qc2 {[%emt 0:00:13]} e4 {[%emt 0:00:06]} 8. Nd4
{[%emt 0:00:02]} Bc5 {[%emt 0:00:04]} 9. cxd5 {[%emt 0:00:04]} cxd5 {[%emt 0:
00:02]} 10. Na4 {[%emt 0:00:06]} Be7 {[%emt 0:00:57]} 11. Nf5 {[%emt 0:00:04]}
O-O {[%emt 0:00:05]} 12. Rc1 {[%emt 0:00:15]} Nb6 {[%emt 0:00:24]} 13. Nxe7+ {
[%emt 0:00:27]} Qxe7 {[%emt 0:00:02]} 14. Be2 {[%emt 0:00:03]} Nxa4 {[%emt 0:
00:04]} 15. bxa4 {[%emt 0:00:02]} Be6 {[%emt 0:00:09]} 16. O-O {[%emt 0:00:09]}
Rfc8 {[%emt 0:00:04]} 17. Qb1 {[%emt 0:00:28]} Nd7 {[%emt 0:00:59]} 18. d3 {
[%emt 0:00:09]} Bf5 {[%emt 0:00:41]} 19. Bd4 {[%emt 0:00:25]} Ne5 {[%emt 0:00:
15]} 20. dxe4 {[%emt 0:00:33]} Bxe4 {[%emt 0:00:08]} 21. Rxc8+ {[%emt 0:00:33]}
Rxc8 {[%emt 0:00:03]} 22. Rc1 {[%emt 0:00:02]} Rxc1+ {[%emt 0:00:16]} 23. Qxc1
{[%emt 0:00:01]} Nc6 {[%emt 0:00:02]} 24. Bc5 {[%emt 0:00:12]} Qg5 {[%emt 0:00:
13]} 25. Bf1 {[%emt 0:00:03]} h6 {[%emt 0:00:07]} 26. Qb2 {[%emt 0:00:18]} b6 {
[%emt 0:00:11]} 27. Bd6 {[%emt 0:00:05]} Qg6 {[%emt 0:00:08]} 28. Bf4 {[%emt 0:
00:22]} Bd3 {[%emt 0:00:21]} 29. h3 {[%emt 0:00:33]} Bxf1 {[%emt 0:00:02]} 30.
Kxf1 {[%emt 0:00:01]} Qd3+ {[%emt 0:00:02]} 31. Kg1 {[%emt 0:00:01]} Qd1+ {
[%emt 0:00:01]} 32. Kh2 {[%emt 0:00:00]} Qxa4 {[%emt 0:00:03]} 33. Qc3 {[%emt
0:00:03]} Qc4 {[%emt 0:00:05]} 34. Qa3 {[%emt 0:00:04]} Qb4 {[%emt 0:00:22]}
35. Qa6 {[%emt 0:00:02]} Qc5 {[%emt 0:00:39]} 36. Qc8+ {[%emt 0:00:03]} Kh7 {
[%emt 0:00:00]} 37. Qf5+ {[%emt 0:00:04]} Kg8 {[%emt 0:00:02]} 38. Qd7 {[%emt
0:00:34]} d4 {[%emt 0:00:20]} 39. Qe8+ {[%emt 0:00:28]} Kh7 {[%emt 0:00:05]}
40. exd4 {[%emt 0:00:10]} Qxd4 {[%emt 0:00:13]} 41. Qxf7 {[%emt 0:00:03]} Qf6 {
[%emt 0:00:20]} 42. Qc4 {[%emt 0:00:05]} Nd4 {[%emt 0:00:28]} 43. Bg3 {[%emt 0:
00:19]} Nf5 {[%emt 0:00:08]} 44. Bb8 {[%emt 0:00:02]} a5 {[%emt 0:00:19]} 45.
a4 {[%emt 0:00:02]} Ne7 {[%emt 0:00:10]} 46. f3 {[%emt 0:00:20]} Nf5 {[%emt 0:
00:41]} 47. Qe4 {[%emt 0:00:09]} Kg8 {[%emt 0:00:08]} 48. Bc7 {[%emt 0:00:13]}
Ne7 {[%emt 0:00:24]} 49. f4 {[%emt 0:00:20]} Kf8 {[%emt 0:00:05]} 50. Be5 {
[%emt 0:00:08]} Qe6 {[%emt 0:00:06]} 51. Qa8+ {[%emt 0:00:05]} Kf7 {[%emt 0:00:
01]} 52. Qb7 {[%emt 0:00:05]} Kg6 {[%emt 0:00:10]} 53. Qe4+ {[%emt 0:00:11]}
Kf7 {[%emt 0:00:01]} 54. Qb1 {[%emt 0:00:17]} Nd5 {[%emt 0:00:02]} 55. Qb5 {
[%emt 0:00:06]} Kg8 {[%emt 0:00:05]} 56. Bb8 {[%emt 0:00:04]} Kf7 {[%emt 0:00:
04]} 57. Qc4 {[%emt 0:00:19]} Kg8 {[%emt 0:00:07]} 58. Be5 {[%emt 0:00:06]} Kf7
{[%emt 0:00:02]} 59. Qd4 {[%emt 0:00:03]} Nb4 {[%emt 0:00:08]} 60. Bxg7 {[%emt
0:00:07]} Nd5 {[%emt 0:00:03]} 61. Be5 {[%emt 0:00:02]} Ne7 {[%emt 0:00:03]}
62. Qd8 {[%emt 0:00:07]} Ng6 {[%emt 0:00:08]} 63. Bc7 {[%emt 0:00:03]} Kg7 {
[%emt 0:00:05]} 1-0

[Event "2021 m. Jauniu lyga. III etapas. A"]
[Site "Siauliai"]
[Date "2021.07.04"]
[Round "2.3"]
[White "Povilaitis, Tomas"]
[Black "Morkunas, Gustas"]
[Result "1/2-1/2"]
[WhiteElo "2024"]
[BlackElo "1940"]
[PlyCount "59"]
[EventDate "2021.??.??"]
[TimeControl "8+4"]
[WhiteClock "0:00:07"]
[BlackClock "0:00:16"]

1. e4 {[%emt 0:00:00]} c5 {[%emt 0:00:02]} 2. Nc3 {[%emt 0:00:02]} a6 {[%emt 0:
00:01]} 3. f4 {[%emt 0:00:02]} b5 {[%emt 0:00:06]} 4. d4 {[%emt 0:00:10]} cxd4
{[%emt 0:00:15]} 5. Qxd4 {[%emt 0:00:02]} e6 {[%emt 0:00:17]} 6. Be3 {[%emt 0:
00:16]} Nc6 {[%emt 0:00:15]} 7. Qd2 {[%emt 0:00:01]} Bb7 {[%emt 0:00:50]} 8.
Nf3 {[%emt 0:00:14]} Qc7 {[%emt 0:00:46]} 9. Be2 {[%emt 0:00:15]} d6 {[%emt 0:
00:10]} 10. O-O {[%emt 0:00:04]} Nf6 {[%emt 0:00:07]} 11. h3 {[%emt 0:00:34]}
Be7 {[%emt 0:00:35]} 12. Rad1 {[%emt 0:00:08]} b4 {[%emt 0:00:59]} 13. Na4 {
[%emt 0:00:06]} Nxe4 {[%emt 0:00:11]} 14. Qe1 {[%emt 0:00:24]} d5 {[%emt 0:00:
57]} 15. Bd3 {[%emt 0:00:39]} Nf6 {[%emt 0:01:25]} 16. Bb6 {[%emt 0:00:36]}
Qxf4 {[%emt 0:00:31]} 17. Nc5 {[%emt 0:01:02]} Qb8 {[%emt 0:00:20]} 18. Ng5 {
[%emt 0:01:49]} Bc8 {[%emt 0:00:14]} 19. Na4 {[%emt 0:00:52]} h6 {[%emt 0:00:
18]} 20. Nf3 {[%emt 0:00:36]} O-O {[%emt 0:00:05]} 21. Nd4 {[%emt 0:00:17]}
Nxd4 {[%emt 0:00:13]} 22. Bxd4 {[%emt 0:00:01]} Qc7 {[%emt 0:00:28]} 23. Qe3 {
[%emt 0:00:41]} Bb7 {[%emt 0:00:19]} 24. Be5 {[%emt 0:00:25]} Qc6 {[%emt 0:00:
05]} 25. Bxf6 {[%emt 0:00:14]} Bxf6 {[%emt 0:00:12]} 26. Rxf6 {[%emt 0:00:04]}
gxf6 {[%emt 0:00:03]} 27. Qxh6 {[%emt 0:00:02]} f5 {[%emt 0:00:01]} 28. Qg5+ {
[%emt 0:00:03]} Kh7 {[%emt 0:00:01]} 29. Qh5+ {[%emt 0:00:11]} Kg7 {[%emt 0:00:
01]} 30. Qg5+ {[%emt 0:00:04]} 1/2-1/2

[Event "2021 m. Jauniu lyga. III etapas. A"]
[Site "Siauliai"]
[Date "2021.07.04"]
[Round "3.1"]
[White "Bagvilas, Lukas"]
[Black "Povilaitis, Tomas"]
[Result "1-0"]
[WhiteElo "1973"]
[BlackElo "2024"]
[PlyCount "89"]
[EventDate "2021.??.??"]
[TimeControl "8+4"]
[WhiteClock "0:02:31"]

1. e4 {[%emt 0:00:02]} c5 {[%emt 0:00:02]} 2. Nc3 {[%emt 0:00:02]} Nc6 {[%emt
0:00:02]} 3. Bb5 {[%emt 0:00:01]} Nd4 {[%emt 0:00:02]} 4. Nf3 {[%emt 0:00:01]}
Nxb5 {[%emt 0:00:04]} 5. Nxb5 {[%emt 0:00:01]} g6 {[%emt 0:00:12]} 6. d4 {
[%emt 0:00:02]} a6 {[%emt 0:00:13]} 7. Nc3 {[%emt 0:00:02]} cxd4 {[%emt 0:00:
15]} 8. Qxd4 {[%emt 0:00:02]} Nf6 {[%emt 0:00:03]} 9. e5 {[%emt 0:00:09]} Nh5 {
[%emt 0:00:36]} 10. e6 {[%emt 0:00:10]} f6 {[%emt 0:01:23]} 11. exd7+ {[%emt 0:
00:02]} Qxd7 {[%emt 0:00:09]} 12. Nd5 {[%emt 0:00:04]} e5 {[%emt 0:00:21]} 13.
Qc4 {[%emt 0:00:06]} b5 {[%emt 0:00:37]} 14. Nc7+ {[%emt 0:02:45]} Kd8 {[%emt
0:00:08]} 15. Qd5 {[%emt 0:00:01]} Qxd5 {[%emt 0:01:33]} 16. Nxd5 {[%emt 0:00:
01]} Be6 {[%emt 0:00:07]} 17. Nc3 {[%emt 0:00:06]} Bc5 {[%emt 0:00:18]} 18. Be3
{[%emt 0:00:05]} Bxe3 {[%emt 0:00:14]} 19. fxe3 {[%emt 0:00:02]} Ke7 {[%emt 0:
00:07]} 20. O-O-O {[%emt 0:00:15]} Rhd8 {[%emt 0:00:06]} 21. Rhf1 {[%emt 0:00:
53]} Bc4 {[%emt 0:00:10]} 22. Rg1 {[%emt 0:00:06]} Ng7 {[%emt 0:00:07]} 23. b3
{[%emt 0:00:28]} Be6 {[%emt 0:00:02]} 24. Kb2 {[%emt 0:00:03]} Rxd1 {[%emt 0:
00:17]} 25. Rxd1 {[%emt 0:00:02]} Rd8 {[%emt 0:00:34]} 26. Rxd8 {[%emt 0:00:10]
} Kxd8 {[%emt 0:00:01]} 27. e4 {[%emt 0:00:00]} Kc7 {[%emt 0:00:16]} 28. Nd5+ {
[%emt 0:00:19]} Bxd5 {[%emt 0:00:06]} 29. exd5 {[%emt 0:00:01]} Nf5 {[%emt 0:
00:21]} 30. c4 {[%emt 0:00:01]} bxc4 {[%emt 0:00:02]} 31. bxc4 {[%emt 0:00:03]}
Ne3 {[%emt 0:00:01]} 32. Kc3 {[%emt 0:00:17]} Nxg2 {[%emt 0:00:02]} 33. Nd2 {
[%emt 0:00:40]} f5 {[%emt 0:00:03]} 34. Nf3 {[%emt 0:00:00]} Kd6 {[%emt 0:00:
10]} 35. Ng5 {[%emt 0:00:00]} Kc5 {[%emt 0:00:54]} 36. Ne6+ {[%emt 0:00:08]}
Kd6 {[%emt 0:00:06]} 37. Ng5 {[%emt 0:00:03]} e4 {[%emt 0:00:28]} 38. Kd4 {
[%emt 0:00:01]} e3 {[%emt 0:00:00]} 39. c5+ {[%emt 0:00:03]} Kd7 {[%emt 0:00:
04]} 40. Kd3 {[%emt 0:00:18]} f4 {[%emt 0:00:09]} 41. Nf3 {[%emt 0:00:33]} h6 {
[%emt 0:00:04]} 42. Ne5+ {[%emt 0:00:01]} Kc7 {[%emt 0:00:01]} 43. d6+ {[%emt
0:00:11]} Kc8 {[%emt 0:00:13]} 44. c6 {[%emt 0:00:05]} f3 {[%emt 0:00:15]} 45.
d7+ {[%emt 0:00:07]} 1-0

[Event "2021 m. Jauniu lyga. III etapas. A"]
[Site "Siauliai"]
[Date "2021.07.04"]
[Round "3.2"]
[White "Salna, Aleksandras"]
[Black "Vardanyan, Aras"]
[Result "0-1"]
[WhiteElo "2134"]
[BlackElo "2216"]
[PlyCount "72"]
[EventDate "2021.??.??"]
[TimeControl "8+4"]
[WhiteClock "0:03:15"]
[BlackClock "0:02:29"]

1. d4 {[%emt 0:00:01]} Nf6 {[%emt 0:00:02]} 2. c4 {[%emt 0:00:04]} e6 {[%emt 0:
00:01]} 3. Nc3 {[%emt 0:00:02]} d5 {[%emt 0:00:02]} 4. Nf3 {[%emt 0:00:04]} a6
{[%emt 0:00:02]} 5. cxd5 {[%emt 0:00:09]} exd5 {[%emt 0:00:01]} 6. Bg5 {[%emt
0:00:01]} Be6 {[%emt 0:00:02]} 7. Bxf6 {[%emt 0:00:10]} Qxf6 {[%emt 0:00:02]}
8. Qb3 {[%emt 0:00:01]} b6 {[%emt 0:00:28]} 9. e3 {[%emt 0:00:19]} Qd8 {[%emt
0:00:13]} 10. Rc1 {[%emt 0:00:20]} Bd6 {[%emt 0:00:05]} 11. Be2 {[%emt 0:00:09]
} O-O {[%emt 0:00:03]} 12. O-O {[%emt 0:00:03]} Nc6 {[%emt 0:00:10]} 13. Qd1 {
[%emt 0:00:29]} Ne7 {[%emt 0:00:08]} 14. a3 {[%emt 0:00:09]} Ng6 {[%emt 0:00:
05]} 15. b4 {[%emt 0:00:04]} Re8 {[%emt 0:00:04]} 16. Bd3 {[%emt 0:00:15]} Nh4
{[%emt 0:00:25]} 17. Ne5 {[%emt 0:00:25]} Qg5 {[%emt 0:01:31]} 18. g3 {[%emt 0:
00:04]} Nf5 {[%emt 0:00:46]} 19. f4 {[%emt 0:00:20]} Qh6 {[%emt 0:00:29]} 20.
Nxd5 {[%emt 0:00:30]} Bxd5 {[%emt 0:00:03]} 21. Bxf5 {[%emt 0:00:02]} g6 {
[%emt 0:00:14]} 22. Bd3 {[%emt 0:00:34]} f6 {[%emt 0:00:10]} 23. e4 {[%emt 0:
00:03]} fxe5 {[%emt 0:00:16]} 24. dxe5 {[%emt 0:00:22]} Bxe5 {[%emt 0:00:35]}
25. exd5 {[%emt 0:00:09]} Bd6 {[%emt 0:00:12]} 26. Qf3 {[%emt 0:00:19]} Re7 {
[%emt 0:00:14]} 27. Rfe1 {[%emt 0:00:04]} Rae8 {[%emt 0:00:15]} 28. Re6 {[%emt
0:00:04]} Qg7 {[%emt 0:00:08]} 29. Rce1 {[%emt 0:00:06]} Qd4+ {[%emt 0:00:14]}
30. Qe3 {[%emt 0:00:16]} Qxe3+ {[%emt 0:00:45]} 31. R1xe3 {[%emt 0:00:01]} a5 {
[%emt 0:00:06]} 32. Bb5 {[%emt 0:00:39]} Rxe6 {[%emt 0:00:02]} 33. dxe6 {[%emt
0:00:02]} Re7 {[%emt 0:00:02]} 34. bxa5 {[%emt 0:00:08]} Bc5 {[%emt 0:00:00]}
35. Kf2 {[%emt 0:00:26]} bxa5 {[%emt 0:00:06]} 36. Kf3 {[%emt 0:00:11]} Bxe3 {
[%emt 0:00:02]} 0-1

[Event "2021 m. Jauniu lyga. III etapas. A"]
[Site "Siauliai"]
[Date "2021.07.04"]
[Round "3.3"]
[White "Bagdanskis, Dangis"]
[Black "Posaskov, Nikita"]
[Result "1-0"]
[WhiteElo "1897"]
[BlackElo "1862"]
[PlyCount "119"]
[EventDate "2021.??.??"]
[TimeControl "8+4"]
[WhiteClock "0:00:31"]
[BlackClock "0:01:34"]

1. d4 {[%emt 0:00:00]} c5 {[%emt 0:00:00]} 2. d5 {[%emt 0:00:09]} e5 {[%emt 0:
00:02]} 3. c4 {[%emt 0:00:29]} d6 {[%emt 0:00:01]} 4. Nc3 {[%emt 0:00:02]} g6 {
[%emt 0:00:04]} 5. Nf3 {[%emt 0:00:08]} Bg7 {[%emt 0:00:02]} 6. Bg5 {[%emt 0:
00:05]} f6 {[%emt 0:00:03]} 7. Bh4 {[%emt 0:00:05]} Ne7 {[%emt 0:00:02]} 8. e4
{[%emt 0:00:11]} O-O {[%emt 0:01:20]} 9. Bd3 {[%emt 0:00:02]} Na6 {[%emt 0:00:
26]} 10. a3 {[%emt 0:00:10]} Nc7 {[%emt 0:00:09]} 11. Qc2 {[%emt 0:00:04]} a6 {
[%emt 0:00:07]} 12. b4 {[%emt 0:00:27]} b6 {[%emt 0:00:13]} 13. bxc5 {[%emt 0:
00:22]} bxc5 {[%emt 0:00:02]} 14. Rb1 {[%emt 0:00:36]} Bg4 {[%emt 0:00:02]} 15.
Nd2 {[%emt 0:00:11]} Rb8 {[%emt 0:00:09]} 16. O-O {[%emt 0:00:10]} g5 {[%emt 0:
00:25]} 17. Bg3 {[%emt 0:00:04]} Qd7 {[%emt 0:00:19]} 18. f3 {[%emt 0:00:04]}
Bh5 {[%emt 0:00:02]} 19. Na4 {[%emt 0:00:46]} Bg6 {[%emt 0:00:16]} 20. Rb6 {
[%emt 0:01:13]} f5 {[%emt 0:01:09]} 21. Rfb1 {[%emt 0:00:02]} Rxb6 {[%emt 0:00:
02]} 22. Rxb6 {[%emt 0:00:20]} fxe4 {[%emt 0:01:03]} 23. Nxe4 {[%emt 0:00:04]}
Nc8 {[%emt 0:00:40]} 24. Rb7 {[%emt 0:00:14]} h6 {[%emt 0:00:22]} 25. Nexc5 {
[%emt 0:01:07]} dxc5 {[%emt 0:00:54]} 26. Bxg6 {[%emt 0:00:07]} g4 {[%emt 0:00:
07]} 27. Nxc5 {[%emt 0:01:15]} Qe7 {[%emt 0:00:07]} 28. Rxc7 {[%emt 0:00:04]}
Qxc7 {[%emt 0:00:26]} 29. Ne6 {[%emt 0:00:01]} Qa5 {[%emt 0:00:23]} 30. Nxf8 {
[%emt 0:00:10]} Bxf8 {[%emt 0:00:04]} 31. Bh7+ {[%emt 0:00:13]} Kh8 {[%emt 0:
00:14]} 32. Bxe5+ {[%emt 0:00:02]} Bg7 {[%emt 0:00:01]} 33. Bxg7+ {[%emt 0:00:
08]} Kxg7 {[%emt 0:00:00]} 34. Qg6+ {[%emt 0:00:03]} Kf8 {[%emt 0:00:01]} 35.
Qxh6+ {[%emt 0:00:13]} Ke8 {[%emt 0:00:02]} 36. Qe3+ {[%emt 0:00:15]} Kd8 {
[%emt 0:00:06]} 37. fxg4 {[%emt 0:00:05]} Nd6 {[%emt 0:00:01]} 38. c5 {[%emt 0:
00:18]} Nc4 {[%emt 0:00:01]} 39. Qg5+ {[%emt 0:00:02]} Kc8 {[%emt 0:00:04]} 40.
Bf5+ {[%emt 0:00:03]} Kb8 {[%emt 0:00:01]} 41. Qg8+ {[%emt 0:00:04]} Ka7 {
[%emt 0:00:03]} 42. Qf7+ {[%emt 0:00:02]} Kb8 {[%emt 0:00:01]} 43. Qe8+ {[%emt
0:00:02]} Ka7 {[%emt 0:00:02]} 44. Qd7+ {[%emt 0:00:06]} Kb8 {[%emt 0:00:01]}
45. Qe8+ {[%emt 0:00:14]} Ka7 {[%emt 0:00:01]} 46. Qe7+ {[%emt 0:00:06]} Kb8 {
[%emt 0:00:05]} 47. h4 {[%emt 0:00:04]} Qd2 {[%emt 0:00:15]} 48. Qe8+ {[%emt 0:
00:20]} Ka7 {[%emt 0:00:01]} 49. Qe7+ {[%emt 0:00:01]} Kb8 {[%emt 0:00:00]} 50.
Qe4 {[%emt 0:00:02]} Ne3 {[%emt 0:00:06]} 51. Qf4+ {[%emt 0:00:09]} Ka7 {[%emt
0:00:10]} 52. Qc7+ {[%emt 0:00:02]} Ka8 {[%emt 0:00:01]} 53. Qc6+ {[%emt 0:00:
03]} Ka7 {[%emt 0:00:01]} 54. Qb6+ {[%emt 0:00:01]} Ka8 {[%emt 0:00:02]} 55.
Qxa6+ {[%emt 0:00:01]} Kb8 {[%emt 0:00:01]} 56. Qb5+ {[%emt 0:00:05]} Ka8 {
[%emt 0:00:02]} 57. Qa4+ {[%emt 0:00:01]} Kb8 {[%emt 0:00:02]} 58. Qb4+ {[%emt
0:00:01]} Qxb4 {[%emt 0:00:02]} 59. axb4 {[%emt 0:00:01]} Nxd5 {[%emt 0:00:02]}
60. b5 {[%emt 0:00:03]} 1-0